[Event "*** Titled Tuesday Blitz"]
[Site "Chess.com"]
[Date "2021.04.06"]
[Round "3"]
[White "Zeeduin"]
[Black "Mihnea2017"]
[Result "1-0"]
[WhiteElo "2767"]
[BlackElo "2457"]
[TimeControl "180+1"]
[EndTime "10:26:16 PDT"]
[Termination "Zeeduin won by resignation"]

1. e4 {[%clk 0:03:00.9]} 1... c6 {[%clk 0:03:00.1]} 2. d4 {[%clk 0:02:57.7]}
2... d5 {[%clk 0:03:00.1]} 3. Nd2 {[%clk 0:02:57.2]} 3... dxe4 {[%clk
0:02:59.7]} 4. Nxe4 {[%clk 0:02:58.1]} 4... Bf5 {[%clk 0:03:00.1]} 5. Ng3 {[%clk
0:02:57.7]} 5... Bg6 {[%clk 0:03:00.6]} 6. h4 {[%clk 0:02:54]} 6... h6 {[%clk
0:02:59.6]} 7. Nh3 {[%clk 0:02:53.8]} 7... e6 {[%clk 0:02:29.9]} 8. Nf4 {[%clk
0:02:52.9]} 8... Bh7 {[%clk 0:02:30.1]} 9. Bc4 {[%clk 0:02:51.6]} 9... Bd6
{[%clk 0:02:30.2]} 10. Ngh5 {[%clk 0:02:50.5]} 10... Bxf4 {[%clk 0:02:19.6]} 11.
Bxf4 {[%clk 0:02:45.4]} 11... Nf6 {[%clk 0:02:17.9]} 12. Nxg7+ {[%clk
0:02:44.6]} 12... Kf8 {[%clk 0:02:18.2]} 13. Bxh6 {[%clk 0:02:44.6]} 13... Qa5+
{[%clk 0:02:18]} 14. Qd2 {[%clk 0:02:16.6]} 14... Qxd2+ {[%clk 0:02:13.9]} 15.
Kxd2 {[%clk 0:02:17.5]} 15... Kg8 {[%clk 0:02:12.3]} 16. Nxe6 {[%clk 0:02:15.5]}
16... Be4 {[%clk 0:01:58.8]} 17. Bg5 {[%clk 0:02:03.4]} 17... Nbd7 {[%clk
0:01:58.6]} 18. Nf4 {[%clk 0:01:58.4]} 18... Kg7 {[%clk 0:01:56.3]} 19. f3
{[%clk 0:01:57.7]} 19... Bg6 {[%clk 0:01:51.3]} 20. g4 {[%clk 0:01:55]} 20... b5
{[%clk 0:01:47.3]} 21. Bb3 {[%clk 0:01:49.9]} 21... a5 {[%clk 0:01:46.6]} 22. a4
{[%clk 0:01:50.2]} 22... Rhd8 {[%clk 0:01:41.2]} 23. h5 {[%clk 0:01:48.9]} 23...
Bh7 {[%clk 0:01:41.6]} 24. h6+ {[%clk 0:01:47.7]} 24... Kf8 {[%clk 0:01:41.3]}
25. c3 {[%clk 0:01:44]} 25... b4 {[%clk 0:01:40.1]} 26. Bc2 {[%clk 0:01:43.9]}
26... bxc3+ {[%clk 0:01:35.1]} 27. bxc3 {[%clk 0:01:44.8]} 27... Re8 {[%clk
0:01:29.7]} 28. Bxf6 {[%clk 0:01:37.9]} 28... Nxf6 {[%clk 0:01:29.4]} 29. g5
{[%clk 0:01:37.4]} 29... Bxc2 {[%clk 0:01:28.8]} 30. gxf6 {[%clk 0:01:34.7]}
30... Bh7 {[%clk 0:01:27.8]} 31. Rag1 {[%clk 0:01:34.3]} 31... Rab8 {[%clk
0:01:26.5]} 32. Nd3 {[%clk 0:01:25.5]} 32... c5 {[%clk 0:01:25.8]} 33. Rg7
{[%clk 0:01:21.3]} 1-0

[Event "*** Titled Tuesday Blitz"]
[Site "Chess.com"]
[Date "2021.04.06"]
[Round "3"]
[White "Nuvas"]
[Black "Chandradi"]
[Result "1-0"]
[WhiteElo "2575"]
[BlackElo "2383"]
[TimeControl "180+1"]
[EndTime "10:26:23 PDT"]
[Termination "Nuvas won by resignation"]

1. d4 {[%clk 0:03:00.9]} 1... Nf6 {[%clk 0:02:59.1]} 2. c4 {[%clk 0:03:01.2]}
2... e6 {[%clk 0:02:57.3]} 3. Nc3 {[%clk 0:03:01.4]} 3... Bb4 {[%clk 0:02:57]}
4. Qc2 {[%clk 0:03:01.6]} 4... c5 {[%clk 0:02:56.7]} 5. dxc5 {[%clk 0:03:01.7]}
5... Bxc5 {[%clk 0:02:56.2]} 6. Nf3 {[%clk 0:03:01.4]} 6... Qb6 {[%clk
0:02:56.2]} 7. e3 {[%clk 0:03:01.2]} 7... Qc7 {[%clk 0:02:53.4]} 8. Be2 {[%clk
0:03:01.3]} 8... a6 {[%clk 0:02:52.9]} 9. O-O {[%clk 0:03:01.1]} 9... O-O {[%clk
0:02:52.4]} 10. b3 {[%clk 0:03:01.7]} 10... b6 {[%clk 0:02:52.1]} 11. Bb2 {[%clk
0:02:38.4]} 11... Bb7 {[%clk 0:02:50.7]} 12. Ng5 {[%clk 0:02:27.2]} 12... h6
{[%clk 0:02:34.7]} 13. Nge4 {[%clk 0:02:22.3]} 13... Be7 {[%clk 0:02:33.7]} 14.
Bf3 {[%clk 0:02:21.7]} 14... Nc6 {[%clk 0:02:28]} 15. Nxf6+ {[%clk 0:01:55.7]}
15... Bxf6 {[%clk 0:02:28.9]} 16. Nd5 {[%clk 0:01:55.9]} 16... exd5 {[%clk
0:02:23.4]} 17. Bxf6 {[%clk 0:01:56.4]} 17... gxf6 {[%clk 0:02:04.4]} 18. cxd5
{[%clk 0:01:56.2]} 18... Qe5 {[%clk 0:02:04.6]} 19. dxc6 {[%clk 0:01:55.5]}
19... Bxc6 {[%clk 0:02:04.6]} 20. Bxc6 {[%clk 0:01:53.6]} 20... Rfc8 {[%clk
0:01:58.5]} 21. Rfd1 {[%clk 0:01:48.9]} 21... Rxc6 {[%clk 0:01:58.1]} 22. Qe2
{[%clk 0:01:47.4]} 22... b5 {[%clk 0:01:53.9]} 23. Rd4 {[%clk 0:01:43.7]} 23...
Rac8 {[%clk 0:01:50]} 24. Rad1 {[%clk 0:01:43.3]} 24... d6 {[%clk 0:01:47.4]}
25. h3 {[%clk 0:01:33.1]} 25... Kh7 {[%clk 0:01:44.1]} 26. Qd3+ {[%clk
0:01:30.6]} 26... Kg7 {[%clk 0:01:42]} 27. Rd5 {[%clk 0:01:26.6]} 27... Qe6
{[%clk 0:01:36.6]} 28. Rxd6 {[%clk 0:01:26.8]} 28... Qe5 {[%clk 0:01:30.3]} 29.
Rd4 {[%clk 0:01:20.3]} 29... Rc2 {[%clk 0:01:27.9]} 30. a4 {[%clk 0:01:11.7]}
30... bxa4 {[%clk 0:01:27.4]} 31. bxa4 {[%clk 0:01:11.9]} 31... R8c6 {[%clk
0:01:24.3]} 32. Rg4+ {[%clk 0:01:10.2]} 32... Kf8 {[%clk 0:01:23.2]} 33. Qd8+
{[%clk 0:01:10.3]} 33... Qe8 {[%clk 0:01:21.6]} 34. Rg8+ {[%clk 0:01:10.9]} 1-0

[Event "*** Titled Tuesday Blitz"]
[Site "Chess.com"]
[Date "2021.04.06"]
[Round "3"]
[White "CM_rui"]
[Black "VladaSviridova"]
[Result "1-0"]
[WhiteElo "2444"]
[BlackElo "2222"]
[TimeControl "180+1"]
[EndTime "10:26:27 PDT"]
[Termination "CM_rui won by resignation"]

1. e4 {[%clk 0:03:00.9]} 1... e6 {[%clk 0:03:00.3]} 2. d4 {[%clk 0:03:00.2]}
2... d5 {[%clk 0:03:01]} 3. Nc3 {[%clk 0:03:01.1]} 3... Bb4 {[%clk 0:03:00.7]}
4. e5 {[%clk 0:02:59.7]} 4... c5 {[%clk 0:03:00.9]} 5. a3 {[%clk 0:02:58.5]}
5... Bxc3+ {[%clk 0:03:01.3]} 6. bxc3 {[%clk 0:02:59.4]} 6... Ne7 {[%clk
0:03:01.7]} 7. f4 {[%clk 0:02:57.4]} 7... b6 {[%clk 0:02:58]} 8. Nf3 {[%clk
0:02:57.8]} 8... Ba6 {[%clk 0:02:57.5]} 9. Bxa6 {[%clk 0:02:58.4]} 9... Nxa6
{[%clk 0:02:57.8]} 10. O-O {[%clk 0:02:59]} 10... h6 {[%clk 0:02:53.1]} 11. Qe2
{[%clk 0:02:57.2]} 11... Nb8 {[%clk 0:02:48.9]} 12. a4 {[%clk 0:02:57.7]} 12...
Nd7 {[%clk 0:02:48.1]} 13. Ba3 {[%clk 0:02:58.2]} 13... Qc7 {[%clk 0:02:48.1]}
14. Rab1 {[%clk 0:02:46.4]} 14... O-O {[%clk 0:02:47.1]} 15. g4 {[%clk
0:02:43.9]} 15... f5 {[%clk 0:01:52.2]} 16. g5 {[%clk 0:02:22.9]} 16... h5
{[%clk 0:01:46.1]} 17. g6 {[%clk 0:02:09.6]} 17... Nxg6 {[%clk 0:01:40.8]} 18.
Ng5 {[%clk 0:02:09.3]} 18... Rfe8 {[%clk 0:01:05.1]} 19. Qxh5 {[%clk 0:02:08.9]}
19... Kf8 {[%clk 0:00:11.4]} 20. Qxg6 {[%clk 0:02:06.6]} 20... Ke7 {[%clk
0:00:10.7]} 21. Qxe6+ {[%clk 0:01:52.9]} 21... Kd8 {[%clk 0:00:10.4]} 22. Nf7+
{[%clk 0:01:53.3]} 22... Kc8 {[%clk 0:00:10.5]} 23. Qxe8+ {[%clk 0:01:54.2]}
23... Kb7 {[%clk 0:00:10.8]} 24. Nd6+ {[%clk 0:01:54.6]} 24... Qxd6 {[%clk
0:00:07.8]} 25. Qxa8+ {[%clk 0:01:55.1]} 25... Kxa8 {[%clk 0:00:07.6]} 26. exd6
{[%clk 0:01:56]} 1-0

[Event "*** Titled Tuesday Blitz"]
[Site "Chess.com"]
[Date "2021.04.06"]
[Round "3"]
[White "Hard_Utilizator"]
[Black "Rish_97"]
[Result "1/2-1/2"]
[WhiteElo "2482"]
[BlackElo "2702"]
[TimeControl "180+1"]
[EndTime "10:26:31 PDT"]
[Termination "Game drawn by agreement"]

1. e4 {[%clk 0:03:00.9]} 1... c6 {[%clk 0:02:58.5]} 2. d4 {[%clk 0:03:00.8]}
2... d5 {[%clk 0:02:59.1]} 3. exd5 {[%clk 0:03:01.7]} 3... cxd5 {[%clk
0:02:59.3]} 4. Bd3 {[%clk 0:03:02.1]} 4... Nc6 {[%clk 0:02:59.8]} 5. c3 {[%clk
0:03:02.6]} 5... e6 {[%clk 0:02:59.3]} 6. Nf3 {[%clk 0:03:02.6]} 6... Bd6 {[%clk
0:02:59.7]} 7. O-O {[%clk 0:03:02.9]} 7... Nge7 {[%clk 0:02:52.2]} 8. Bg5 {[%clk
0:03:00]} 8... f6 {[%clk 0:02:28.7]} 9. Bh4 {[%clk 0:02:58.9]} 9... O-O {[%clk
0:02:29]} 10. c4 {[%clk 0:02:42.5]} 10... Nf5 {[%clk 0:02:05.4]} 11. cxd5 {[%clk
0:02:21.1]} 11... exd5 {[%clk 0:01:50.7]} 12. Nc3 {[%clk 0:02:01]} 12... Nce7
{[%clk 0:01:39.6]} 13. Qb3 {[%clk 0:01:46.6]} 13... Kh8 {[%clk 0:01:28.1]} 14.
Bg3 {[%clk 0:01:37.6]} 14... Bxg3 {[%clk 0:01:11.2]} 15. hxg3 {[%clk 0:01:38.5]}
15... Nc6 {[%clk 0:01:05.6]} 16. Bxf5 {[%clk 0:01:33.5]} 16... Bxf5 {[%clk
0:01:06.5]} 17. Qxd5 {[%clk 0:01:33.6]} 17... Qxd5 {[%clk 0:01:04.9]} 18. Nxd5
{[%clk 0:01:33.9]} 18... Be4 {[%clk 0:01:05.8]} 19. Nc3 {[%clk 0:01:25.4]} 19...
Bxf3 {[%clk 0:01:05.7]} 20. gxf3 {[%clk 0:01:26.3]} 20... Nxd4 {[%clk
0:01:06.6]} 21. Kg2 {[%clk 0:01:10.2]} 21... Rad8 {[%clk 0:00:50]} 22. Rad1
{[%clk 0:01:08.8]} 1/2-1/2

[Event "*** Titled Tuesday Blitz"]
[Site "Chess.com"]
[Date "2021.04.06"]
[Round "3"]
[White "tteshan"]
[Black "Maddie"]
[Result "1-0"]
[WhiteElo "2325"]
[BlackElo "2066"]
[TimeControl "180+1"]
[EndTime "10:26:32 PDT"]
[Termination "tteshan won by checkmate"]

1. e4 {[%clk 0:03:00.9]} 1... c6 {[%clk 0:03:00]} 2. d4 {[%clk 0:02:59.1]} 2...
d5 {[%clk 0:03:00.2]} 3. exd5 {[%clk 0:03:00]} 3... cxd5 {[%clk 0:03:00.6]} 4.
Bd3 {[%clk 0:03:00.7]} 4... Nc6 {[%clk 0:03:01]} 5. c3 {[%clk 0:03:00.7]} 5...
Nf6 {[%clk 0:03:01.5]} 6. h3 {[%clk 0:03:00.6]} 6... e6 {[%clk 0:02:59.8]} 7.
Nf3 {[%clk 0:03:00.7]} 7... Be7 {[%clk 0:03:00.2]} 8. O-O {[%clk 0:03:01.3]}
8... O-O {[%clk 0:03:00.5]} 9. Nbd2 {[%clk 0:02:57.5]} 9... a6 {[%clk
0:03:00.1]} 10. a4 {[%clk 0:02:54.3]} 10... Bd7 {[%clk 0:02:58.8]} 11. Re1
{[%clk 0:02:54.1]} 11... Na5 {[%clk 0:02:58.6]} 12. Nf1 {[%clk 0:02:52.5]} 12...
b5 {[%clk 0:02:57.2]} 13. b4 {[%clk 0:02:47.1]} 13... Nc4 {[%clk 0:02:56.8]} 14.
a5 {[%clk 0:02:47.7]} 14... Rc8 {[%clk 0:02:54.8]} 15. Ng3 {[%clk 0:02:45]}
15... Bd6 {[%clk 0:02:54.8]} 16. Ne2 {[%clk 0:02:41.4]} 16... Bb8 {[%clk
0:02:52.1]} 17. Bf4 {[%clk 0:02:29.3]} 17... Bxf4 {[%clk 0:02:50.9]} 18. Nxf4
{[%clk 0:02:29.8]} 18... Nd6 {[%clk 0:02:45.1]} 19. Rc1 {[%clk 0:02:17.1]} 19...
Nde4 {[%clk 0:02:44.6]} 20. Qb3 {[%clk 0:02:07.5]} 20... Rc7 {[%clk 0:02:40.7]}
21. Ne5 {[%clk 0:02:03.2]} 21... Qc8 {[%clk 0:02:37.9]} 22. Ne2 {[%clk
0:01:58.8]} 22... Be8 {[%clk 0:02:34.7]} 23. f3 {[%clk 0:01:58.6]} 23... Nd2
{[%clk 0:02:30.5]} 24. Qc2 {[%clk 0:01:52]} 24... Nc4 {[%clk 0:02:30.6]} 25.
Bxc4 {[%clk 0:01:46.5]} 25... bxc4 {[%clk 0:02:27.9]} 26. g4 {[%clk 0:01:45.5]}
26... Nd7 {[%clk 0:02:25.2]} 27. f4 {[%clk 0:01:33.7]} 27... Nxe5 {[%clk
0:02:24.6]} 28. fxe5 {[%clk 0:01:34.6]} 28... Bb5 {[%clk 0:02:21.5]} 29. Ng3
{[%clk 0:01:33]} 29... Qd8 {[%clk 0:02:17.6]} 30. Rf1 {[%clk 0:01:25.1]} 30...
Qh4 {[%clk 0:02:15.1]} 31. Kh2 {[%clk 0:01:25.3]} 31... Qe7 {[%clk 0:02:11.9]}
32. Rf3 {[%clk 0:01:18.4]} 32... g6 {[%clk 0:02:05.9]} 33. Rcf1 {[%clk
0:01:17.7]} 33... Qd7 {[%clk 0:02:04.1]} 34. Rf6 {[%clk 0:01:17.6]} 34... Ba4
{[%clk 0:02:02.3]} 35. Qd2 {[%clk 0:01:14.8]} 35... Bb5 {[%clk 0:01:59.1]} 36.
h4 {[%clk 0:01:14.8]} 36... Rcc8 {[%clk 0:01:54.5]} 37. h5 {[%clk 0:01:14.8]}
37... Qd8 {[%clk 0:01:53.2]} 38. Kg2 {[%clk 0:01:05.6]} 38... Kg7 {[%clk
0:01:51.3]} 39. hxg6 {[%clk 0:01:02.8]} 39... hxg6 {[%clk 0:01:50.7]} 40. Nh5+
{[%clk 0:00:59.1]} 40... gxh5 {[%clk 0:01:42.4]} 41. Qg5+ {[%clk 0:00:58.4]}
41... Kh7 {[%clk 0:01:41.8]} 42. Rh6# {[%clk 0:00:59.1]} 1-0

[Event "*** Titled Tuesday Blitz"]
[Site "Chess.com"]
[Date "2021.04.06"]
[Round "3"]
[White "Godzillator"]
[Black "kai_nov"]
[Result "1-0"]
[WhiteElo "2300"]
[BlackElo "2260"]
[TimeControl "180+1"]
[EndTime "10:26:33 PDT"]
[Termination "Godzillator won on time"]

1. d4 {[%clk 0:03:00.9]} 1... d5 {[%clk 0:02:59.3]} 2. c4 {[%clk 0:03:00.8]}
2... e6 {[%clk 0:02:59.3]} 3. cxd5 {[%clk 0:03:00.9]} 3... exd5 {[%clk
0:02:58.9]} 4. Nc3 {[%clk 0:03:01.3]} 4... c6 {[%clk 0:02:58.8]} 5. Qc2 {[%clk
0:03:01.3]} 5... Bd6 {[%clk 0:02:48.6]} 6. Nf3 {[%clk 0:03:00.5]} 6... h6 {[%clk
0:02:38.1]} 7. g3 {[%clk 0:02:56.1]} 7... Nf6 {[%clk 0:02:35.1]} 8. Bf4 {[%clk
0:02:55.9]} 8... O-O {[%clk 0:02:23.1]} 9. Bg2 {[%clk 0:02:54.4]} 9... Bxf4
{[%clk 0:02:19.1]} 10. gxf4 {[%clk 0:02:54.4]} 10... g6 {[%clk 0:02:16.1]} 11.
Ne5 {[%clk 0:02:54.1]} 11... Bf5 {[%clk 0:02:09.2]} 12. Qd2 {[%clk 0:02:49.5]}
12... Nbd7 {[%clk 0:02:02.9]} 13. e3 {[%clk 0:02:49.3]} 13... Nxe5 {[%clk
0:01:35.4]} 14. fxe5 {[%clk 0:02:49]} 14... Nd7 {[%clk 0:01:25.2]} 15. e4 {[%clk
0:02:40.1]} 15... dxe4 {[%clk 0:01:20.8]} 16. Qxh6 {[%clk 0:02:39.7]} 16... c5
{[%clk 0:01:01.1]} 17. Bxe4 {[%clk 0:02:35.8]} 17... cxd4 {[%clk 0:00:17]} 18.
Bxf5 {[%clk 0:02:35.4]} 18... Nxe5 {[%clk 0:00:16.7]} 19. Ne4 {[%clk 0:02:31.8]}
19... Nf3+ {[%clk 0:00:08.2]} 20. Kf1 {[%clk 0:02:08.8]} 20... Re8 {[%clk
0:00:04.4]} 21. Kg2 {[%clk 0:01:53.1]} 21... Qd5 {[%clk 0:00:02.3]} 22. Bxg6
{[%clk 0:01:49.8]} 1-0

[Event "*** Titled Tuesday Blitz"]
[Site "Chess.com"]
[Date "2021.04.06"]
[Round "3"]
[White "PSvidler"]
[Black "Airquake"]
[Result "1-0"]
[WhiteElo "2965"]
[BlackElo "2664"]
[TimeControl "180+1"]
[EndTime "10:26:34 PDT"]
[Termination "PSvidler won by resignation"]

1. e4 {[%clk 0:03:00.9]} 1... c5 {[%clk 0:02:53.5]} 2. Nf3 {[%clk 0:03:00.2]}
2... d6 {[%clk 0:02:46.3]} 3. Bd3 {[%clk 0:02:59.7]} 3... g6 {[%clk 0:02:36.1]}
4. c3 {[%clk 0:02:59.4]} 4... Bg7 {[%clk 0:02:36.7]} 5. Bc2 {[%clk 0:02:56.6]}
5... e6 {[%clk 0:02:37.1]} 6. d4 {[%clk 0:02:56]} 6... cxd4 {[%clk 0:02:37.4]}
7. cxd4 {[%clk 0:02:55.9]} 7... Ne7 {[%clk 0:02:37.8]} 8. O-O {[%clk 0:02:56]}
8... O-O {[%clk 0:02:38.2]} 9. Nc3 {[%clk 0:02:56]} 9... d5 {[%clk 0:02:28.4]}
10. e5 {[%clk 0:02:51.5]} 10... Nbc6 {[%clk 0:02:28]} 11. Bf4 {[%clk 0:02:47.4]}
11... a6 {[%clk 0:02:26.5]} 12. Qd2 {[%clk 0:02:47]} 12... b5 {[%clk 0:02:26.8]}
13. Rac1 {[%clk 0:02:45.2]} 13... Bd7 {[%clk 0:02:24.9]} 14. Bh6 {[%clk
0:02:44.6]} 14... Rc8 {[%clk 0:02:23.3]} 15. h4 {[%clk 0:02:40.7]} 15... Nf5
{[%clk 0:01:41.4]} 16. Bxf5 {[%clk 0:02:34.2]} 16... gxf5 {[%clk 0:01:42.3]} 17.
Bxg7 {[%clk 0:02:32.2]} 17... Kxg7 {[%clk 0:01:41.8]} 18. Ne2 {[%clk 0:02:32.4]}
18... f6 {[%clk 0:01:39]} 19. Nf4 {[%clk 0:02:25]} 19... fxe5 {[%clk 0:01:33.8]}
20. dxe5 {[%clk 0:02:25.9]} 20... Qe8 {[%clk 0:01:28.9]} 21. g3 {[%clk
0:02:17.1]} 21... Kh8 {[%clk 0:01:26.9]} 22. Kh2 {[%clk 0:02:16.3]} 22... Rg8
{[%clk 0:01:26.2]} 23. Rc2 {[%clk 0:02:12.9]} 23... Rg4 {[%clk 0:01:24.4]} 24.
Rfc1 {[%clk 0:02:12.3]} 24... Ne7 {[%clk 0:01:11.8]} 25. Rxc8 {[%clk 0:02:10.4]}
25... Nxc8 {[%clk 0:01:12.7]} 26. Rc7 {[%clk 0:02:07.3]} 26... Ne7 {[%clk
0:01:03.2]} 27. Ng5 {[%clk 0:02:06.7]} 27... Nc6 {[%clk 0:00:53.3]} 28. f3
{[%clk 0:02:01.4]} 28... Rxg5 {[%clk 0:00:49.7]} 29. hxg5 {[%clk 0:01:56]} 29...
Qd8 {[%clk 0:00:47.2]} 30. Nxe6 {[%clk 0:01:54.1]} 30... Qe8 {[%clk 0:00:33.6]}
31. Nf4 {[%clk 0:01:49.8]} 31... Nxe5 {[%clk 0:00:32.2]} 32. Kg2 {[%clk
0:01:47.2]} 32... Kg8 {[%clk 0:00:28.2]} 33. Qxd5+ {[%clk 0:01:46.8]} 1-0

[Event "*** Titled Tuesday Blitz"]
[Site "Chess.com"]
[Date "2021.04.06"]
[Round "3"]
[White "reniite"]
[Black "BJthechessgod"]
[Result "1-0"]
[WhiteElo "2037"]
[BlackElo "2287"]
[TimeControl "180+1"]
[EndTime "10:26:35 PDT"]
[Termination "reniite won by resignation"]

1. e4 {[%clk 0:03:00.9]} 1... c5 {[%clk 0:02:59.6]} 2. Nf3 {[%clk 0:02:56.4]}
2... Nc6 {[%clk 0:02:59]} 3. d4 {[%clk 0:02:56.2]} 3... cxd4 {[%clk 0:02:59.9]}
4. Nxd4 {[%clk 0:02:56.8]} 4... g6 {[%clk 0:03:00.8]} 5. Nc3 {[%clk 0:02:54.9]}
5... Bg7 {[%clk 0:03:00.8]} 6. Nde2 {[%clk 0:02:52.9]} 6... Nf6 {[%clk
0:03:00.3]} 7. g3 {[%clk 0:02:53.2]} 7... O-O {[%clk 0:03:00.5]} 8. Bg2 {[%clk
0:02:54.1]} 8... d6 {[%clk 0:03:00.1]} 9. O-O {[%clk 0:02:44.4]} 9... Bd7 {[%clk
0:02:56.1]} 10. h3 {[%clk 0:02:41.5]} 10... Rc8 {[%clk 0:02:56.1]} 11. Nd5
{[%clk 0:02:11.4]} 11... Nxd5 {[%clk 0:02:49.8]} 12. exd5 {[%clk 0:02:12.3]}
12... Ne5 {[%clk 0:02:46.3]} 13. a4 {[%clk 0:02:08.4]} 13... a5 {[%clk 0:02:36]}
14. Kh2 {[%clk 0:02:00.5]} 14... Nc4 {[%clk 0:02:33.7]} 15. Ra2 {[%clk
0:01:58.1]} 15... Bf5 {[%clk 0:02:22.1]} 16. b3 {[%clk 0:01:53.8]} 16... Ne5
{[%clk 0:02:21.2]} 17. f4 {[%clk 0:01:39.8]} 17... Nd7 {[%clk 0:02:20.2]} 18. g4
{[%clk 0:01:35.2]} 18... Nf6 {[%clk 0:02:12.3]} 19. gxf5 {[%clk 0:01:33.2]}
19... gxf5 {[%clk 0:02:13.2]} 20. Nd4 {[%clk 0:01:16.1]} 20... Qd7 {[%clk
0:02:12.5]} 21. c4 {[%clk 0:01:14.2]} 21... e5 {[%clk 0:02:09.2]} 22. fxe5
{[%clk 0:01:07.9]} 22... dxe5 {[%clk 0:02:08.7]} 23. Nxf5 {[%clk 0:01:08.4]}
23... e4 {[%clk 0:02:06.7]} 24. Raf2 {[%clk 0:01:06.2]} 24... Ne8 {[%clk
0:02:03.5]} 25. Nxg7 {[%clk 0:01:04.9]} 25... Nxg7 {[%clk 0:02:03.7]} 26. Bb2
{[%clk 0:01:03.8]} 26... f5 {[%clk 0:01:59.9]} 27. Ba3 {[%clk 0:00:59.6]} 27...
Rf6 {[%clk 0:01:55.7]} 28. Bxe4 {[%clk 0:00:56.9]} 28... Rh6 {[%clk 0:01:49.1]}
29. Bg2 {[%clk 0:00:54.5]} 29... Re8 {[%clk 0:01:48.1]} 30. Bc1 {[%clk
0:00:48.6]} 30... Rg6 {[%clk 0:01:46.4]} 31. Bf4 {[%clk 0:00:40.7]} 31... Nh5
{[%clk 0:01:44.2]} 32. Qxh5 {[%clk 0:00:37.1]} 32... Qg7 {[%clk 0:01:44.1]} 33.
d6 {[%clk 0:00:32.5]} 33... Re4 {[%clk 0:01:43]} 34. Qxf5 {[%clk 0:00:31.3]}
34... Rxf4 {[%clk 0:01:43.2]} 35. Qxf4 {[%clk 0:00:31.8]} 1-0

[Event "*** Titled Tuesday Blitz"]
[Site "Chess.com"]
[Date "2021.04.06"]
[Round "3"]
[White "ehrenfeld"]
[Black "northridgehawk"]
[Result "1-0"]
[WhiteElo "2535"]
[BlackElo "2313"]
[TimeControl "180+1"]
[EndTime "10:26:37 PDT"]
[Termination "ehrenfeld won by resignation"]

1. e4 {[%clk 0:03:00.9]} 1... e5 {[%clk 0:02:59.6]} 2. Nc3 {[%clk 0:03:00.5]}
2... Nc6 {[%clk 0:03:00.1]} 3. Bc4 {[%clk 0:02:59.7]} 3... Nf6 {[%clk
0:02:59.9]} 4. d3 {[%clk 0:02:59.2]} 4... Bc5 {[%clk 0:02:59.6]} 5. f4 {[%clk
0:02:58]} 5... d6 {[%clk 0:02:59.6]} 6. Nf3 {[%clk 0:02:57.8]} 6... Bg4 {[%clk
0:02:59]} 7. Na4 {[%clk 0:02:57.5]} 7... Nd4 {[%clk 0:02:54.4]} 8. Nxc5 {[%clk
0:02:55.6]} 8... dxc5 {[%clk 0:02:53.3]} 9. O-O {[%clk 0:02:44.9]} 9... Nxf3+
{[%clk 0:02:51.3]} 10. gxf3 {[%clk 0:02:44.5]} 10... Bh3 {[%clk 0:02:50.8]} 11.
Rf2 {[%clk 0:02:44.2]} 11... exf4 {[%clk 0:02:49.1]} 12. Bxf4 {[%clk 0:02:37.1]}
12... O-O {[%clk 0:02:48.2]} 13. Kh1 {[%clk 0:02:36.4]} 13... c6 {[%clk
0:02:44.7]} 14. a4 {[%clk 0:02:33.6]} 14... Nh5 {[%clk 0:02:39.6]} 15. Be3
{[%clk 0:02:31.1]} 15... Qe7 {[%clk 0:02:37.8]} 16. Qg1 {[%clk 0:02:26]} 16...
Rad8 {[%clk 0:02:31.9]} 17. Qg5 {[%clk 0:02:20.9]} 17... Qxg5 {[%clk 0:02:27.7]}
18. Bxg5 {[%clk 0:02:20.9]} 18... Rd7 {[%clk 0:02:27.1]} 19. Rg1 {[%clk
0:02:14]} 19... Kh8 {[%clk 0:02:23.6]} 20. Be3 {[%clk 0:02:12.6]} 20... b6
{[%clk 0:02:19.8]} 21. Rg5 {[%clk 0:02:10.2]} 21... g6 {[%clk 0:02:18.9]} 22. f4
{[%clk 0:01:59]} 22... f6 {[%clk 0:02:13.4]} 23. Rg1 {[%clk 0:01:58.4]} 23...
Re7 {[%clk 0:02:08.5]} 24. Bd2 {[%clk 0:01:55.9]} 24... Be6 {[%clk 0:02:07.6]}
25. Bxe6 {[%clk 0:01:52.8]} 25... Rxe6 {[%clk 0:02:08.5]} 26. f5 {[%clk
0:01:53.1]} 26... Re7 {[%clk 0:02:05.4]} 27. fxg6 {[%clk 0:01:51.3]} 27... hxg6
{[%clk 0:02:05.1]} 28. Rxg6 {[%clk 0:01:51]} 28... Rg7 {[%clk 0:02:03.6]} 29.
Rh6+ {[%clk 0:01:45.4]} 29... Rh7 {[%clk 0:02:03.7]} 30. Rf5 {[%clk 0:01:35.5]}
30... Ng7 {[%clk 0:01:56.2]} 31. Rf3 {[%clk 0:01:26.3]} 31... Kg8 {[%clk
0:01:52.7]} 32. Rg6 {[%clk 0:01:24.6]} 32... f5 {[%clk 0:01:40.5]} 33. exf5
{[%clk 0:01:15.9]} 33... Kf7 {[%clk 0:01:40.6]} 34. Rxc6 {[%clk 0:01:12.1]}
34... Re8 {[%clk 0:01:36.7]} 35. Rc7+ {[%clk 0:00:56]} 35... Kf8 {[%clk
0:01:35.9]} 36. f6 {[%clk 0:00:48.6]} 1-0

[Event "*** Titled Tuesday Blitz"]
[Site "Chess.com"]
[Date "2021.04.06"]
[Round "3"]
[White "banane_verte"]
[Black "KrolPawel92OnTwitch"]
[Result "0-1"]
[WhiteElo "2427"]
[BlackElo "2649"]
[TimeControl "180+1"]
[EndTime "10:26:44 PDT"]
[Termination "KrolPawel92OnTwitch won by resignation"]

1. e4 {[%clk 0:03:00.9]} 1... c5 {[%clk 0:02:59]} 2. Nc3 {[%clk 0:03:00]} 2...
Nc6 {[%clk 0:02:56.4]} 3. g3 {[%clk 0:02:59.6]} 3... g6 {[%clk 0:02:56.5]} 4.
Bg2 {[%clk 0:03:00]} 4... Bg7 {[%clk 0:02:57]} 5. d3 {[%clk 0:03:00.4]} 5... e6
{[%clk 0:02:57.2]} 6. Be3 {[%clk 0:03:00.4]} 6... d6 {[%clk 0:02:56.9]} 7. Nge2
{[%clk 0:02:59.9]} 7... Nd4 {[%clk 0:02:56.8]} 8. O-O {[%clk 0:02:55.1]} 8...
Ne7 {[%clk 0:02:55.8]} 9. Qd2 {[%clk 0:02:55]} 9... O-O {[%clk 0:02:54.5]} 10.
Nd1 {[%clk 0:02:55.6]} 10... Nec6 {[%clk 0:02:51.2]} 11. Nc1 {[%clk 0:02:55.2]}
11... e5 {[%clk 0:02:40.1]} 12. c3 {[%clk 0:02:39.8]} 12... Ne6 {[%clk
0:02:36.4]} 13. Bh6 {[%clk 0:02:40]} 13... f5 {[%clk 0:02:35.5]} 14. Bxg7 {[%clk
0:02:39]} 14... Kxg7 {[%clk 0:02:35]} 15. exf5 {[%clk 0:02:31.7]} 15... gxf5
{[%clk 0:02:31.8]} 16. Ne3 {[%clk 0:02:30.8]} 16... f4 {[%clk 0:02:29.7]} 17.
Nd5 {[%clk 0:02:29.2]} 17... f3 {[%clk 0:02:25.6]} 18. Bh3 {[%clk 0:02:08.9]}
18... Ng5 {[%clk 0:02:01.5]} 19. Bxc8 {[%clk 0:01:40.3]} 19... Rxc8 {[%clk
0:02:02.4]} 20. h4 {[%clk 0:01:27.4]} 20... Nf7 {[%clk 0:02:01.1]} 21. d4 {[%clk
0:01:15.7]} 21... cxd4 {[%clk 0:01:59.8]} 22. Nd3 {[%clk 0:01:13.6]} 22... Qd7
{[%clk 0:01:57.9]} 23. Ne1 {[%clk 0:01:07.8]} 23... Qg4 {[%clk 0:01:49.3]} 24.
Qd3 {[%clk 0:00:59.4]} 24... e4 {[%clk 0:01:46.3]} 25. Qd2 {[%clk 0:00:59.5]}
25... d3 {[%clk 0:01:44.9]} 26. Ne3 {[%clk 0:00:55.9]} 26... Qh3 {[%clk
0:01:42.4]} 27. b4 {[%clk 0:00:35.7]} 27... Nce5 {[%clk 0:01:41.6]} 28. c4
{[%clk 0:00:31.7]} 28... Nh6 {[%clk 0:01:41.6]} 29. c5 {[%clk 0:00:30]} 29...
Nhg4 {[%clk 0:01:41.6]} 30. Nxg4 {[%clk 0:00:25.5]} 30... Nxg4 {[%clk
0:01:42.5]} 31. Qg5+ {[%clk 0:00:25.6]} 31... Kh8 {[%clk 0:01:42.6]} 32. Qxg4
{[%clk 0:00:22.1]} 32... Qxg4 {[%clk 0:01:43.2]} 0-1